[Event "BL 2016-17"]
[Site "Jenbach"]
[Date "2017.04.21"]
[Round "10"]
[White "Deglmann, Ludwig"]
[Black "Kvetny, Mark"]
[Result "0-1"]
[ECO "A03"]
[WhiteElo "2300"]
[BlackElo "2372"]
[Annotator "ChessBase"]
[PlyCount "24"]
[EventDate "2017.??.??"]
[EventCountry "AUT"]
[SourceTitle "playchess.com"]
[Source "ChessBase"]
[SourceQuality "1"]
[WhiteTeam "Absam"]
[BlackTeam "Götzis"]
[TimeControl "40/5400+30:1800+30"]

1. f4 {[%emt 0:00:00]} d5 {[%emt 0:00:37]} 2. Nf3 {[%emt 0:00:00]} Bg4 {[%emt 0:03:04]} 3. e3 {[%emt 0:00:12]} Nd7 {[%emt 0:01:07]} 4. h3 {[%emt 0:03:39]} Bxf3 {[%emt 0:06:06]} 5. Qxf3 {[%emt 0:00:28]} Ngf6 {[%emt 0:16:29]} 6. g4 {[%emt 0:01:34]} c6 {[%emt 0:04:23]} 7. d3 {[%emt 0:06:01]} g6 {[%emt 0:04:57]} 8. e4 {[%emt 0:13:50]} dxe4 {[%emt 0:03:04]} 9. dxe4 {[%emt 0:00:07]} e5 {[%emt 0:02:04]} 10. Bc4 {[%emt 0:07:20]} exf4 {[%emt 0:14:01]} 11. Bxf4 {[%emt 0:03:40]} Qe7 {[%emt 0:01:00]} 12. Nd2 {[%emt 0:04:44]} Ne5 {[%emt 0:03:27]} 0-1

[Event "BL 2016-17"]
[Site "Jenbach"]
[Date "2017.04.21"]
[Round "10"]
[White "Gstach, Jakob"]
[Black "Volkmann, Friedrich Karl"]
[Result "0-1"]
[ECO "D02"]
[WhiteElo "2299"]
[BlackElo "2402"]
[Annotator "ChessBase"]
[PlyCount "104"]
[EventDate "2017.??.??"]
[EventCountry "AUT"]
[SourceTitle "playchess.com"]
[Source "ChessBase"]
[SourceQuality "1"]
[WhiteTeam "Wien-SK Ottakring"]
[BlackTeam "Wulkaprodersdorf"]
[TimeControl "40/5400+30:1800+30"]

1. d4 {[%emt 0:00:00]} d5 {[%emt 0:01:12]} 2. Nf3 {[%emt 0:00:00]} Nc6 {[%emt 0:00:27]} 3. Bf4 {[%emt 0:00:13]} Bg4 {[%emt 0:00:07]} 4. e3 {[%emt 0:00:40]} e6 {[%emt 0:01:03]} 5. Be2 {[%emt 0:05:06]} Bd6 {[%emt 0:00:38]} 6. c3 {[%emt 0:01:56]} Bxf4 {[%emt 0:03:31]} 7. exf4 {[%emt 0:00:02]} Qf6 {[%emt 0:00:25]} 8. g3 {[%emt 0:00:30]} O-O-O {[%emt 0:10:22]} 9. Nbd2 {[%emt 0:00:41]} h6 {[%emt 0:07:46]} 10. h4 {[%emt 0:11:40]} Qf5 {[%emt 0:04:30]} 11. h5 {[%emt 0:05:48]} Nf6 {[%emt 0:05:31]} 12. Ne5 {[%emt 0:15:23]} Nxe5 {[%emt 0:01:44]} 13. fxe5 {[%emt 0:00:08]} Bxe2 {[%emt 0:01:20]} 14. Qxe2 {[%emt 0:00:06]} Nd7 {[%emt 0:01:27]} 15. f4 {[%emt 0:03:51]} f6 {[%emt 0:06:06]} 16. Nf3 {[%emt 0:19:07]} g5 {[%emt 0:05:44]} 17. hxg6 {[%emt 0:03:12]} Qxg6 {[%emt 0:00:16]} 18. Kf2 {[%emt 0:00:09]} fxe5 {[%emt 0:06:18]} 19. Nxe5 {[%emt 0:01:14]} Nxe5 {[%emt 0:00:11]} 20. Qxe5 {[%emt 0:00:14]} Rdg8 {[%emt 0:04:49]} 21. Rhg1 {[%emt 0:07:10]} h5 {[%emt 0:00:35]} 22. Rae1 {[%emt 0:00:08]} Rh6 {[%emt 0:05:23]} 23. Qe3 {[%emt 0:06:40]} Qf7 {[%emt 0:05:53]} 24. Qf3 {[%emt 0:04:39]} h4 {[%emt 0:10:52]} 25. gxh4 {[%emt 0:00:13]} Rxg1 {[%emt 0:00:23]} 26. Rxg1 {[%emt 0:00:23]} Rxh4 {[%emt 0:00:08]} 27. Rg4 {[%emt 0:00:38]} Rh6 {[%emt 0:01:23]} 28. Qg3 {[%emt 0:01:33]} b6 {[%emt 0:04:41]} 29. Rh4 {[%emt 0:02:35]} Rxh4 {[%emt 0:02:11]} 30. Qxh4 {[%emt 0:00:02]} Qf5 {[%emt 0:00:06]} 31. Qh8+ {[%emt 0:00:39]} Kb7 {[%emt 0:00:08]} 32. Qe5 {[%emt 0:00:53]} Qc2+ {[%emt 0:04:00]} 33. Qe2 {[%emt 0:00:48]} Qg6 {[%emt 0:00:51]} 34. a3 {[%emt 0:01:30]} Kc6 {[%emt 0:01:09]} 35. Ke1 {[%emt 0:02:29]} a5 {[%emt 0:00:21]} 36. Kd2 {[%emt 0:01:57]} Qf5 {[%emt 0:01:28]} 37. Qe5 {[%emt 0:02:16]} a4 {[%emt 0:01:48]} 38. Qe3 {[%emt 0:01:29]} Kd6 {[%emt 0:02:24]} 39. Kc1 {[%emt 0:00:34]} c5 {[%emt 0:00:26]} 40. Qg3 {[%emt 0:00:00]} Kc6 {[%emt 0:02:11]} 41. Qe3 {[%emt 0:05:23]} Kd6 {[%emt 0:02:08]} 42. Qg3 {[%emt 0:01:03]} cxd4 {[%emt 0:06:00]} 43. cxd4 {[%emt 0:00:07]} Kd7 {[%emt 0:00:30]} 44. Qg7+ {[%emt 0:09:59]} Kc6 {[%emt 0:00:24]} 45. Qg3 {[%emt 0:00:07]} Qe4 {[%emt 0:01:46]} 46. Qc3+ {[%emt 0:00:15]} Kd7 {[%emt 0:02:12]} 47. Qb4 {[%emt 0:00:10]} Qxf4+ {[%emt 0:00:05]} 48. Kb1 {[%emt 0:00:05]} Qf1+ {[%emt 0:00:20]} 49. Kc2 {[%emt 0:00:50]} Qe2+ {[%emt 0:05:24]} 50. Kb1 {[%emt 0:00:25]} Qd3+ {[%emt 0:00:08]} 51. Ka1 {[%emt 0:00:24]} Qf1+ {[%emt 0:00:04]} 52. Ka2 {[%emt 0:00:06]} Qc4+ {[%emt 0:00:05]} 0-1

[Event "BL 2016-17"]
[Site "Jenbach"]
[Date "2017.04.21"]
[Round "10"]
[White "Anistratov, Dmitriy"]
[Black "de Francesco, Klaus"]
[Result "0-1"]
[ECO "A06"]
[WhiteElo "2292"]
[BlackElo "2227"]
[Annotator "NA"]
[PlyCount "76"]
[EventDate "2017.??.??"]
[EventCountry "AUT"]
[SourceTitle "playchess.com"]
[Source "ChessBase"]
[SourceQuality "1"]
[WhiteTeam "Götzis"]
[BlackTeam "Absam"]
[TimeControl "40/5400+30:1800+30"]

1. Nf3 {[%emt 0:00:00]} d5 {[%emt 0:00:12]} 2. d3 {[%emt 0:00:36]} c5 {[%emt 0:01:35]} 3. Nbd2 {[%emt 0:00:28]} Nc6 {[%emt 0:00:36]} 4. c3 {[%emt 0:00:16]} e6 {[%emt 0:02:07]} 5. e4 {[%emt 0:00:28]} Nge7 {[%emt 0:00:15]} 6. Be2 {[%emt 0:10:50]} g6 {[%emt 0:02:11]} 7. h4 {[%emt 0:02:31]} h6 {[%emt 0:00:20]} 8. Qc2 {[%emt 0:02:09]} Bg7 {[%emt 0:01:02]} 9. Nf1 {[%emt 0:09:50]} b6 {[%emt 0:06:18]} 10. Ng3 {[%emt 0:03:57]} Bb7 {[%emt 0:04:20]} 11. O-O {[%emt 0:09:51]} O-O {[%emt 0:06:39]} 12. Bd2 {[%emt 0:05:06]} f5 {[%emt 0:03:51]} 13. exf5 {[%emt 0:02:52]} Nxf5 {[%emt 0:01:05]} 14. d4 {[%emt 0:09:17]} (14. Nxf5 $15 gxf5 15. h5) 14... cxd4 {[%emt 0:06:37]} 15. Nxf5 {[%emt 0:01:39]} gxf5 $17 {[%emt 0:03:38]} (15... exf5 16. cxd4 Nxd4 17. Nxd4 Bxd4 18. g3) 16. cxd4 {[%emt 0:01:08]} Nxd4 {[%emt 0:02:41]} 17. Nxd4 {[%emt 0:02:56]} Bxd4 {[%emt 0:02:16]} 18. g3 {[%emt 0:17:43]} Qf6 {[%emt 0:04:12]} 19. Rab1 {[%emt 0:01:25]} Rf7 {[%emt 0:02:33]} 20. Kh2 {[%emt 0:02:59]} e5 {[%emt 0:02:14]} 21. Bf3 {[%emt 0:06:34]} e4 {[%emt 0:03:36]} 22. Bh5 {[%emt 0:00:42]} Rg7 {[%emt 0:01:15]} 23. Bf4 {[%emt 0:00:22]} Ba6 {[%emt 0:01:33]} 24. Be2 {[%emt 0:00:25]} Rc8 {[%emt 0:02:11]} 25. Qd2 {[%emt 0:00:08]} Bxe2 {[%emt 0:01:05]} 26. Qxe2 {[%emt 0:00:04]} Be5 {[%emt 0:00:28]} 27. Bxe5 {[%emt 0:01:59]} Qxe5 {[%emt 0:00:07]} 28. Qh5 {[%emt 0:00:45]} Rc2 {[%emt 0:01:36]} 29. Kh1 {[%emt 0:02:55]} e3 {[%emt 0:02:54]} 30. Rbe1 {[%emt 0:02:10]} e2 {[%emt 0:03:57]} 31. Rg1 {[%emt 0:00:28]} Kh7 {[%emt 0:01:27]} 32. f3 {[%emt 0:01:29]} Qe6 {[%emt 0:03:44]} 33. g4 {[%emt 0:01:14]} fxg4 {[%emt 0:03:49]} 34. fxg4 {[%emt 0:00:55]} d4 {[%emt 0:01:48]} 35. Rg3 {[%emt 0:00:36]} d3 {[%emt 0:01:29]} 36. Re3 {[%emt 0:00:40]} Qxe3 {[%emt 0:01:48]} 37. Qf5+ {[%emt 0:00:09]} Kg8 {[%emt 0:00:30]} 38. Qd5+ {[%emt 0:00:10]} Rf7 {[%emt 0:00:26]} 0-1

[Event "BL 2016-17"]
[Site "Jenbach"]
[Date "2017.04.21"]
[Round "10"]
[White "Tober, Gerhard"]
[Black "Kuntner, Reinhard"]
[Result "1/2-1/2"]
[ECO "B22"]
[WhiteElo "2260"]
[BlackElo "2021"]
[Annotator "NA"]
[PlyCount "103"]
[EventDate "2017.??.??"]
[EventCountry "AUT"]
[SourceTitle "playchess.com"]
[Source "ChessBase"]
[SourceQuality "1"]
[WhiteTeam "St. Valentin"]
[BlackTeam "Nickelsdorf"]
[TimeControl "40/5400+30:1800+30"]

1. e4 {[%emt 0:00:00]} c5 {[%emt 0:00:08]} 2. c3 {[%emt 0:00:26]} d5 {[%emt 0:00:18]} 3. exd5 {[%emt 0:00:18]} Qxd5 {[%emt 0:00:12]} 4. d4 {[%emt 0:00:37]} Nf6 {[%emt 0:03:18]} 5. Nf3 {[%emt 0:00:48]} cxd4 {[%emt 0:02:53]} 6. cxd4 {[%emt 0:01:32]} e6 {[%emt 0:02:02]} 7. Nc3 {[%emt 0:02:07]} Bb4 {[%emt 0:04:22]} 8. Bd3 {[%emt 0:01:35]} Nc6 {[%emt 0:04:04]} 9. O-O {[%emt 0:00:40]} Qd8 {[%emt 0:01:49]} 10. Qe2 {[%emt 0:32:48]} O-O {[%emt 0:06:06]} 11. Rd1 {[%emt 0:04:46]} Re8 {[%emt 0:07:07]} 12. Bg5 {[%emt 0:03:11]} Be7 {[%emt 0:07:10]} 13. a3 {[%emt 0:00:31]} Nd5 {[%emt 0:07:52]} 14. Bd2 {[%emt 0:10:38]} a6 {[%emt 0:04:37]} 15. Rac1 {[%emt 0:07:10]} Bd6 {[%emt 0:12:14]} 16. Re1 {[%emt 0:04:02]} Bd7 {[%emt 0:01:49]} 17. Qe4 {[%emt 0:04:02]} ({White should play} 17. Ng5 $16 Nf6 18. Nce4 Nxe4 19. Bxe4 (19. Qxe4 f5 20. Qf3 Qf6 $11)) 17... f5 {[%emt 0:00:31]} 18. Qe2 {[%emt 0:00:54]} h6 {[%emt 0:07:19]} 19. Nxd5 {[%emt 0:01:57]} exd5 {[%emt 0:00:06]} 20. Qd1 {[%emt 0:01:48]} Rxe1+ {[%emt 0:05:18]} 21. Bxe1 {[%emt 0:00:26]} Bf4 {[%emt 0:02:47]} 22. Rc2 {[%emt 0:05:13]} Qb6 {[%emt 0:02:52]} 23. Bc3 {[%emt 0:00:27]} Re8 {[%emt 0:03:45]} 24. Re2 {[%emt 0:00:56]} Rxe2 {[%emt 0:02:50]} 25. Qxe2 {[%emt 0:00:13]} Qc7 {[%emt 0:01:05]} 26. g3 {[%emt 0:01:16]} Bd6 {[%emt 0:00:10]} 27. Nh4 {[%emt 0:01:07]} Ne7 {[%emt 0:01:31]} 28. Qh5 {[%emt 0:04:04]} Bxa3 {[%emt 0:04:31]} 29. Nxf5 {[%emt 0:01:14]} Nxf5 {[%emt 0:01:07]} 30. Bxf5 {[%emt 0:00:10]} Be7 {[%emt 0:01:53]} 31. Bc2 {[%emt 0:03:05]} Qd6 {[%emt 0:00:50]} 32. Bb4 {[%emt 0:01:36]} Qe6 {[%emt 0:02:57]} 33. Bxe7 {[%emt 0:00:28]} Qe1+ {[%emt 0:00:09]} 34. Kg2 {[%emt 0:00:13]} Qxe7 {[%emt 0:00:03]} 35. Qxd5+ {[%emt 0:00:35]} Kh8 {[%emt 0:00:26]} 36. Qf3 {[%emt 0:03:11]} Qd6 {[%emt 0:01:38]} 37. d5 {[%emt 0:00:38]} b5 {[%emt 0:00:26]} 38. h4 {[%emt 0:01:22]} a5 {[%emt 0:00:07]} 39. Qe4 {[%emt 0:01:22]} Kg8 {[%emt 0:00:05]} 40. h5 {[%emt 0:00:00]} a4 {[%emt 0:00:38]} 41. Qh7+ {[%emt 0:13:31]} Kf7 {[%emt 0:01:42]} 42. Bg6+ {[%emt 0:03:36]} Kf6 {[%emt 0:00:10]} 43. Be4 {[%emt 0:00:54]} Qe5 {[%emt 0:03:06]} 44. Qg6+ {[%emt 0:02:15]} Ke7 {[%emt 0:00:08]} 45. d6+ {[%emt 0:00:52]} Kf8 {[%emt 0:00:38]} 46. g4 {[%emt 0:07:59]} Qxb2 {[%emt 0:02:24]} 47. Bf5 {[%emt 0:01:12]} Bc6+ {[%emt 0:07:08]} 48. Be4 $11 {[%emt 0:00:05]} Bd7 {[%emt 0:09:43]} 49. Qh7 {[%emt 0:00:33]} Qb3 {[%emt 0:00:53]} 50. Bf3 {[%emt 0:02:36]} Qb2 51. Bd5 Qf6 52. Qg8# {Qxd6 Qxg7+} 1/2-1/2

[Event "BL 2016-17"]
[Site "Jenbach"]
[Date "2017.04.21"]
[Round "10"]
[White "Theuretzbacher, Klaus"]
[Black "Pinter, Erik"]
[Result "0-1"]
[ECO "B20"]
[WhiteElo "2249"]
[BlackElo "2384"]
[Annotator "NA"]
[PlyCount "86"]
[EventDate "2017.??.??"]
[EventCountry "AUT"]
[SourceTitle "playchess.com"]
[Source "ChessBase"]
[SourceQuality "1"]
[WhiteTeam "St. Valentin"]
[BlackTeam "Nickelsdorf"]
[TimeControl "40/5400+30:1800+30"]

1. e4 {[%emt 0:00:00]} c5 {[%emt 0:00:10]} 2. b4 {[%emt 0:00:00]} cxb4 {[%emt 0:00:25]} 3. a3 {[%emt 0:00:00]} e6 {[%emt 0:00:17]} 4. Nf3 {[%emt 0:07:32]} Nf6 {[%emt 0:09:40]} 5. e5 {[%emt 0:02:15]} Nd5 {[%emt 0:00:07]} 6. axb4 {[%emt 0:00:41]} Bxb4 {[%emt 0:02:27]} 7. c3 {[%emt 0:00:11]} Be7 {[%emt 0:00:24]} 8. d4 {[%emt 0:00:09]} d6 {[%emt 0:03:04]} 9. c4 {[%emt 0:09:29]} Nc7 {[%emt 0:09:41]} 10. exd6 {[%emt 0:03:49]} Bxd6 {[%emt 0:06:04]} 11. Nc3 {[%emt 0:02:19]} Bb4 {[%emt 0:07:19]} 12. Qb3 {[%emt 0:03:36]} Nc6 {[%emt 0:00:47]} 13. Be2 {[%emt 0:01:01]} b5 {[%emt 0:17:21]} 14. O-O {[%emt 0:05:09]} bxc4 {[%emt 0:00:20]} 15. Qxc4 {[%emt 0:00:53]} Bb7 {[%emt 0:01:30]} 16. Rb1 {[%emt 0:05:05]} a5 $17 {[%emt 0:01:18]} 17. Rd1 {[%emt 0:00:38]} O-O {[%emt 0:21:07]} 18. Bg5 {[%emt 0:28:20]} Qe8 {[%emt 0:01:53]} 19. Ne4 {[%emt 0:00:58]} Ba6 {[%emt 0:05:28]} 20. Qa2 {[%emt 0:00:24]} Bxe2 {[%emt 0:00:39]} 21. Qxe2 {[%emt 0:00:01]} f6 {[%emt 0:00:22]} 22. Bf4 {[%emt 0:02:29]} Nd5 {[%emt 0:00:27]} 23. Bd2 {[%emt 0:02:18]} Rd8 {[%emt 0:04:06]} 24. Qc4 {[%emt 0:02:26]} Kh8 {[%emt 0:02:10]} 25. Nc5 {[%emt 0:00:46]} Bxc5 {[%emt 0:00:46]} 26. dxc5 {[%emt 0:01:20]} e5 {[%emt 0:01:29]} 27. Rb5 {[%emt 0:11:47]} Ndb4 {[%emt 0:00:38]} 28. Re1 {[%emt 0:02:36]} Qd7 {[%emt 0:02:36]} 29. Rb6 {[%emt 0:03:27]} Qd3 {[%emt 0:01:17]} 30. Qg4 {[%emt 0:01:06]} Nd4 {[%emt 0:00:52]} 31. Bxb4 {[%emt 0:00:52]} axb4 {[%emt 0:00:04]} 32. Nxd4 {[%emt 0:01:10]} Rxd4 {[%emt 0:00:07]} 33. Qe6 {[%emt 0:00:16]} Qc3 {[%emt 0:00:32]} 34. Rf1 {[%emt 0:01:36]} Qxc5 {[%emt 0:00:02]} 35. Rc6 {[%emt 0:00:34]} Qa7 {[%emt 0:00:58]} 36. Ra6 {[%emt 0:00:19]} Qc7 {[%emt 0:01:04]} 37. Rfa1 {[%emt 0:00:17]} Rfd8 {[%emt 0:00:35]} 38. g3 {[%emt 0:02:28]} Qd7 {[%emt 0:00:01]} 39. Qb3 {[%emt 0:00:31]} Rd1+ {[%emt 0:00:42]} 40. Kg2 {[%emt 0:00:00]} Qb7+ {[%emt 0:00:35]} 41. Qf3 {[%emt 0:04:12]} Qxf3+ {[%emt 0:02:13]} 42. Kxf3 {[%emt 0:03:16]} Rxa1 {[%emt 0:01:19]} 43. Rxa1 {[%emt 0:00:41]} b3 {[%emt 0:00:05]} 0-1

[Event "BL 2016-17"]
[Site "Jenbach"]
[Date "2017.04.21"]
[Round "10"]
[White "Steiner, Adam"]
[Black "Mesaros, Florian"]
[Result "0-1"]
[ECO "C31"]
[WhiteElo "2220"]
[BlackElo "2382"]
[Annotator "NA"]
[PlyCount "74"]
[EventDate "2017.??.??"]
[EventCountry "AUT"]
[SourceTitle "playchess.com"]
[Source "ChessBase"]
[SourceQuality "1"]
[WhiteTeam "Wien-SK Ottakring"]
[BlackTeam "Wulkaprodersdorf"]
[TimeControl "40/5400+30:1800+30"]

1. e4 {[%emt 0:00:00]} e5 {[%emt 0:00:14]} 2. f4 {[%emt 0:00:00]} d5 {[%emt 0:01:00]} 3. exd5 {[%emt 0:00:00]} exf4 {[%emt 0:00:08]} 4. Nf3 {[%emt 0:00:18]} Ne7 {[%emt 0:14:18]} 5. Be2 {[%emt 0:08:51]} Nxd5 {[%emt 0:00:41]} 6. c4 {[%emt 0:00:08]} Nf6 {[%emt 0:01:31]} 7. d4 {[%emt 0:00:39]} Bd6 {[%emt 0:03:07]} 8. c5 {[%emt 0:00:36]} Be7 {[%emt 0:00:40]} 9. Bxf4 {[%emt 0:00:07]} b6 {[%emt 0:09:19]} 10. Nc3 {[%emt 0:12:46]} O-O {[%emt 0:03:37]} 11. Ne5 {[%emt 0:05:33]} bxc5 {[%emt 0:11:05]} 12. dxc5 {[%emt 0:05:26]} (12. Bf3 $11 cxd4 13. Bxa8 dxc3 14. Qxd8 (14. bxc3 Nbd7 15. Bf3 Bc5 $15) 14... Rxd8 15. bxc3) 12... Bb7 {[%emt 0:06:35]} 13. Qb3 {[%emt 0:10:11]} (13. Qxd8 $11 {remains equal.} Rxd8 14. Bc4) 13... Bxg2 {[%emt 0:06:36]} 14. Rg1 {[%emt 0:00:01]} Qd4 {[%emt 0:01:38]} 15. Rxg2 {[%emt 0:05:29]} Qxf4 {[%emt 0:00:17]} 16. Nxf7 $17 {[%emt 0:20:06]} Rxf7 {[%emt 0:15:34]} 17. Rf2 {[%emt 0:01:46]} Qh4 {[%emt 0:02:57]} 18. Bc4 {[%emt 0:04:00]} Nbd7 {[%emt 0:05:55]} 19. Bxf7+ {[%emt 0:00:16]} Kf8 {[%emt 0:01:38]} 20. Qc4 {[%emt 0:01:33]} Qg5 {[%emt 0:00:19]} 21. Bd5 {[%emt 0:12:28]} Re8 {[%emt 0:02:49]} 22. Kd1 {[%emt 0:07:22]} Bxc5 {[%emt 0:02:24]} 23. Rf1 {[%emt 0:01:05]} Qh5+ {[%emt 0:00:27]} 24. Bf3 {[%emt 0:00:21]} Qxh2 {[%emt 0:00:25]} 25. Rc1 {[%emt 0:01:32]} Qxb2 {[%emt 0:03:45]} 26. Bh5 {[%emt 0:01:40]} Re7 {[%emt 0:01:36]} 27. Nd5 {[%emt 0:00:16]} Qh2 {[%emt 0:02:11]} 28. Nxf6 {[%emt 0:00:42]} gxf6 {[%emt 0:00:32]} 29. Bf3 {[%emt 0:00:39]} Be3 {[%emt 0:02:16]} 30. Rc2 {[%emt 0:00:20]} Qd6+ {[%emt 0:00:01]} 31. Qd5 {[%emt 0:00:01]} Qb4 {[%emt 0:00:31]} 32. Qc4 {[%emt 0:01:14]} Qd6+ {[%emt 0:01:32]} 33. Qd5 {[%emt 0:00:02]} Qb6 {[%emt 0:00:06]} 34. Rc6 {[%emt 0:00:51]} Qb1+ {[%emt 0:00:26]} 35. Ke2 {[%emt 0:00:05]} Bf4+ {[%emt 0:00:43]} 36. Re6 {[%emt 0:01:00]} Rxe6+ {[%emt 0:00:07]} 37. Qxe6 {[%emt 0:00:08]} Qc2+ {[%emt 0:00:04]} 0-1

[Event "BL 2016-17"]
[Site "Jenbach"]
[Date "2017.04.21"]
[Round "10"]
[White "Koffler, Daniel"]
[Black "Heimberger, Reinhard"]
[Result "1/2-1/2"]
[ECO "D35"]
[WhiteElo "2126"]
[BlackElo "2285"]
[Annotator "NA"]
[PlyCount "109"]
[EventDate "2017.??.??"]
[EventCountry "AUT"]
[SourceTitle "playchess.com"]
[Source "ChessBase"]
[SourceQuality "1"]
[WhiteTeam "Nickelsdorf"]
[BlackTeam "St. Valentin"]
[TimeControl "40/5400+30:1800+30"]

1. d4 {[%emt 0:00:00]} d5 {[%emt 0:00:23]} 2. c4 {[%emt 0:00:00]} e6 {[%emt 0:00:11]} 3. Nc3 {[%emt 0:00:08]} Nf6 {[%emt 0:00:06]} 4. cxd5 {[%emt 0:00:18]} exd5 {[%emt 0:00:08]} 5. Bg5 {[%emt 0:00:08]} c6 {[%emt 0:00:30]} 6. e3 {[%emt 0:00:51]} Qb6 {[%emt 0:01:57] LiveBook: 115 Games} 7. Qb3 {[%emt 0:09:13] D35: Queen's Gambit Declined: Exchange Variation} (7. Qd2 Bf5 8. Bxf6 gxf6 9. Bd3 Bg6 10. Nge2 Bd6 11. O-O Nd7 12. Rab1 Qc7 13. Kh1 a6 14. a4 a5 15. f4 Bxd3 16. Qxd3 {½-½ (63) Berkes,F (2658)-Jakubowski,K (2530) Arad 2014}) 7... Qxb3 {[%emt 0:09:10]} 8. axb3 {[%emt 0:00:06]} Ne4 $146 {[%emt 0:00:31]} (8... Nbd7 9. Bd3 Bb4 10. Nge2 h6 11. Bh4 Ke7 12. f3 Re8 13. Bf2 Nb6 14. O-O Be6 {1-0 (38) Petran,P (2440)-Rabiega,R (2455) Austria 1994}) 9. Bf4 {[%emt 0:04:20]} Bb4 {[%emt 0:07:15]} 10. Nge2 {[%emt 0:00:16]} a5 {[%emt 0:05:47]} 11. f3 {[%emt 0:00:50]} Nf6 {[%emt 0:09:37]} 12. Ng3 {[%emt 0:03:28]} O-O {[%emt 0:04:58]} 13. Kf2 {[%emt 0:04:14]} g6 {[%emt 0:08:30]} 14. Bd3 {[%emt 0:03:27]} Be6 {[%emt 0:04:55]} 15. Nge2 {[%emt 0:01:20]} Nh5 {[%emt 0:03:15]} 16. Bh6 {[%emt 0:01:54]} Re8 {[%emt 0:00:33]} 17. g4 {[%emt 0:08:52]} Ng7 {[%emt 0:01:45]} 18. Ng3 {[%emt 0:03:02]} Nd7 {[%emt 0:00:45]} 19. h4 {[%emt 0:02:01]} Bd6 {[%emt 0:09:22]} (19... f6 $14) 20. Nce2 {[%emt 0:02:13]} f6 {[%emt 0:09:28]} 21. Rag1 {[%emt 0:06:11]} a4 {[%emt 0:00:40]} 22. bxa4 {[%emt 0:00:20]} Rxa4 {[%emt 0:00:01]} 23. h5 $14 {[%emt 0:27:51]} g5 {[%emt 0:01:45]} 24. f4 {[%emt 0:00:08]} Be7 {[%emt 0:01:17]} 25. Nf5 {[%emt 0:00:59]} Bxf5 {[%emt 0:01:31]} 26. gxf5 {[%emt 0:00:21]} Kf7 {[%emt 0:07:46]} 27. fxg5 {[%emt 0:00:55]} fxg5 {[%emt 0:00:04]} 28. Bxg5 {[%emt 0:00:10]} Bxg5 {[%emt 0:01:50]} 29. Rxg5 {[%emt 0:00:01]} Rea8 {[%emt 0:00:50]} 30. h6 {[%emt 0:05:20]} Ne8 {[%emt 0:00:08]} 31. Nc3 {[%emt 0:00:36]} Rb4 {[%emt 0:00:27]} 32. Rb1 {[%emt 0:00:08]} Ndf6 {[%emt 0:02:55]} 33. Kf3 {[%emt 0:00:21]} Ra5 {[%emt 0:03:47]} 34. Rg2 {[%emt 0:01:43]} c5 {[%emt 0:00:41]} 35. dxc5 {[%emt 0:01:38]} Rxc5 {[%emt 0:00:41]} 36. Ra1 {[%emt 0:00:42]} Rh4 {[%emt 0:01:12]} 37. Ra7 {[%emt 0:03:10]} Rc7 {[%emt 0:00:03]} 38. Ra5 {[%emt 0:01:09]} Rxh6 {[%emt 0:02:16]} 39. Nxd5 {[%emt 0:00:16]} Nxd5 {[%emt 0:01:11]} 40. Rxd5 {[%emt 0:00:00]} Rh3+ {[%emt 0:00:45]} 41. Rg3 {[%emt 0:02:07]} Rh2 {[%emt 0:00:10]} 42. Rb5 {[%emt 0:00:46]} Rd2 {[%emt 0:01:08]} 43. Rb3 {[%emt 0:03:00]} Nd6 {[%emt 0:02:19]} 44. e4 {[%emt 0:01:57]} Kf6 {[%emt 0:06:13]} 45. Ke3 {[%emt 0:00:16]} Rh2 {[%emt 0:00:05]} 46. Kd4 {[%emt 0:01:33]} Nf7 {[%emt 0:00:46]} 47. Rb6+ {[%emt 0:06:19]} Rc6 {[%emt 0:00:04]} 48. Rxb7 {[%emt 0:00:20]} Ne5 {[%emt 0:00:05]} 49. Ke3 {[%emt 0:03:59]} h5 {[%emt 0:08:33]} 50. Bb5 {[%emt 0:10:12]} Rd6 {[%emt 0:01:39]} 51. Rh7 {[%emt 0:04:14]} h4 {[%emt 0:00:06]} 52. Rh6+ {[%emt 0:01:03]} Kf7 {[%emt 0:00:06]} 53. Rh7+ {[%emt 0:04:02]} Kf6 {[%emt 0:00:24]} 54. Rh6+ {[%emt 0:00:06]} Kf7 {[%emt 0:00:03]} 55. Rh7+ 1/2-1/2